lending/lending_fUSD_20250808
["ID","MTS","AMOUNT","RATE_DAILY","PERIOD"]
[377946808,1754623853704,-1000.0,0.00018999,2]
[377946810,1754623853713,-165.68891755,0.00018999,2]
[377946812,1754623853722,-112836.81158609,0.00019,2]
[377946817,1754623853754,-2061.62616746,0.00019,2]
[377946821,1754623853781,-5670.44302791,0.00019,2]
[377946823,1754623853792,-408.30563646,0.00019,2]
[377946825,1754623853807,-9761.2715,0.00019,2]
[377947588,1754623887274,484.42,0.00017883,2]
[377947589,1754623895080,163.0,0.00018,2]
[377947593,1754623932782,165.0,0.00018,2]
[377947594,1754623933773,165.0,0.00018,2]
[377947595,1754623936553,165.0,0.00018,3]
[377947596,1754623954122,165.0,0.00018,3]
[377947597,1754623965035,164.16,0.00018,2]
[377947600,1754624026196,-247.38717507,0.00018036,2]
[377947601,1754624028581,-158.94290462,0.00018036,2]
[377947602,1754624030853,-186.93328575,0.00018036,2]
[377947603,1754624034724,-215.09322133,0.00018036,2]
[377947604,1754624038202,-228.69420174,0.00018036,2]
[377947605,1754624041826,-399.55749742,0.00018036,2]
[377947606,1754624044833,-169.94222741,0.00018036,2]
[377947607,1754624047937,-87.05948666,0.00018036,2]
[377947608,1754624047960,-173.08432096,0.000183,6]
[377947609,1754624052002,-26.91567904,0.000183,6]
[377947610,1754624052025,-437.56510858,0.000184,6]
[377947611,1754624055613,-62.43489142,0.000184,6]
[377947612,1754624055637,-99.61063346,0.000185,6]
[377947613,1754624057570,-265.94063929,0.000185,6]
[377947614,1754624060598,-152.99549832,0.000185,6]
[377947615,1754624063017,-181.45322893,0.000185,6]
[377947616,1754624063040,-28.1573217,0.000186,6]
[377947617,1754624066177,-367.01075338,0.000186,6]
[377947618,1754624068392,-230.94531047,0.000186,6]
[377947619,1754624070554,-206.58695392,0.000186,6]
[377947620,1754624073546,-167.29966053,0.000186,6]
[377947621,1754624149482,175.0,0.00017883,7]
[377947622,1754624188202,549.94,0.00027397,120]
[377947623,1754624207102,-179.57507455,0.00018025,2]
[377947624,1754624209609,-303.34032758,0.00018025,2]
[377947625,1754624211515,-28.08459787,0.00018025,2]
[377947626,1754624295099,178.89,0.00017883,2]
[377947627,1754624354196,470.78,0.00015068,2]
[377947628,1754624354432,470.78,0.00016659,2]
[377947629,1754624356248,-302.11695315,0.00018249,2]
[377947630,1754624360835,-168.66304685,0.00018249,2]
[377947631,1754624361478,2.26695315,0.00017883,2]
[377947632,1754624361521,336.33304685,0.00017883,2]
[377947635,1754624389962,-157.5548096,0.00018433,2]
[377947636,1754624394666,-9.4351904,0.00018433,2]
[377947637,1754624534243,150.0,0.00017893,2]
[377947638,1754624544257,250.0,0.00017883,2]
[377947640,1754624559769,202.73,0.00013699,2]
[377947641,1754624593553,666.0,0.00017849,3]
[377947642,1754624645028,-233.91326121,0.00018519,4]
[377947643,1754624646753,-164.40740082,0.00018433,2]
[377947644,1754624646776,-76.63505896,0.00018519,4]
[377947645,1754624651368,-165.85836653,0.00018519,4]
[377947646,1754624654271,-250.0,0.00018519,4]
[377947647,1754624657124,-273.5933133,0.00018519,4]
[377947648,1754624657148,-38.46620387,0.00018605,2]
[377947649,1754624659377,-158.68497501,0.00018605,2]
[377947650,1754624659400,-122.35468151,0.00018623,4]
[377947651,1754624661876,-364.24150108,0.00018623,4]
[377947652,1754624664332,-265.24483812,0.00018623,4]
[377947653,1754624671288,-174.14355517,0.00018623,4]
[377947654,1754624674068,-74.01542412,0.00018623,4]
[377947655,1754624681320,-16.75470581,0.00018691,2]
[377947656,1754624681332,-133.24529419,0.00018691,2]
[377947657,1754624704796,150.0,0.00017088,2]
[377947658,1754624810800,250.0,0.0003,120]
[377947659,1754624820931,208.62,0.00017881,2]
[377947660,1754624821284,208.62,0.00026822,120]
[377947661,1754624827258,281.0,0.0003,120]
[377947663,1754624860339,-164.40740081,0.00018691,2]
[377947665,1754624925507,518.95049257,0.00017883,2]
[377947666,1754624925539,156.24,0.00017883,2]
[377947667,1754624925564,324.80950743,0.00017883,2]
[377947668,1754624927458,-189.8720301,0.00018124,2]
[377947669,1754624929930,-226.20265286,0.00018124,2]
[377947670,1754624933045,-94.92531704,0.00018124,2]
[377947676,1754625006326,287.04,0.00017883,2]
[377947682,1754625031844,-1200.0,0.00018699,2]
[377947683,1754625031853,-9807.09366727,0.000187,2]
[377947684,1754625031863,-150.0,0.00018716,2]
[377947685,1754625031872,-300.0,0.00018721,2]
[377947686,1754625031881,-300.0,0.00018721,2]
[377947687,1754625031895,-1000.0,0.00018722,4]
[377947688,1754625031904,-1000.0,0.00018727,4]
[377947689,1754625031915,-150.0,0.00018747,2]
[377947690,1754625031924,-150.0,0.00018749,2]
[377947691,1754625031934,-300.0,0.00018769,2]
[377947692,1754625031945,-877.96342722,0.0001877,2]
[377947693,1754625031955,-287.04,0.00018777,2]
[377947694,1754625031965,-267.46074303,0.00018778,2]
[377947695,1754625031974,-2500.0,0.00018788,2]
[377947696,1754625031984,-5000.0,0.00018788,2]
[377947697,1754625031995,-263.78641324,0.00018788,2]
[377947698,1754625032005,-397.74145029,0.00018788,2]
[377947699,1754625032015,-156.61673826,0.00018788,2]
[377947700,1754625032025,-397.74145028,0.000188,2]
[377947701,1754625032035,-163.91636,0.0001881,2]
[377947702,1754625032044,-397.74145028,0.00018813,2]
[377947703,1754625032054,-168.0,0.00018814,2]
[377947704,1754625032064,-397.74145028,0.00018825,2]
[377947705,1754625032074,-397.74145028,0.00018838,2]
[377947706,1754625032083,-397.74145028,0.0001885,2]
[377947707,1754625032093,-397.74145028,0.00018863,2]
[377947708,1754625032103,-150.0,0.00018863,2]
[377947709,1754625032112,-300.0,0.00018871,2]
[377947710,1754625032122,-850.0,0.00018872,2]
[377947711,1754625032131,-500.0,0.00018873,2]
[377947712,1754625032141,-500.0,0.00018873,2]
[377947713,1754625032151,-500.0,0.00018873,2]
[377947714,1754625032161,-500.0,0.00018873,2]
[377947715,1754625032174,-500.0,0.00018873,2]
[377947716,1754625032184,-502.64988209,0.00018873,2]
[377947717,1754625032194,-500.0,0.00018873,2]
[377947718,1754625032204,-500.0,0.00018873,2]
[377947719,1754625032214,-364.18429611,0.00018873,2]
[377947721,1754625032224,-505.78676626,0.00018873,2]
[377947723,1754625032234,-500.0,0.00018873,2]
[377947725,1754625032243,-500.0,0.00018873,2]
[377947727,1754625032253,-504.40113976,0.00018873,2]
[377947729,1754625032262,-494.07728229,0.00018873,2]
[377947731,1754625032271,-500.0,0.00018873,2]
[377947732,1754625032281,-500.0,0.00018873,2]
[377947734,1754625032291,-500.0,0.00018873,2]
[377947736,1754625032300,-500.0,0.00018873,2]
[377947738,1754625032310,-500.0,0.00018873,2]
[377947740,1754625032320,-397.74145028,0.00018875,2]
[377947743,1754625032329,-500.0,0.00018877,2]
[377947745,1754625032339,-160.0,0.00018877,2]
[377947748,1754625032349,-151.0,0.00018877,2]
[377947751,1754625032358,-228.51389393,0.00018877,2]
[377947753,1754625032368,-298.28,0.00018878,2]
[377947755,1754625032378,-319.164,0.00018886,2]
[377947757,1754625032387,-560.41801015,0.00018886,2]
[377947759,1754625032397,-500.0,0.00018886,2]
[377947761,1754625032406,-115.22338666,0.00018886,2]
[377947764,1754625032423,-384.77661334,0.00018886,2]
[377947766,1754625032433,-500.0,0.00018886,2]
[377947768,1754625032446,-500.0,0.00018886,2]
[377947770,1754625032456,-500.0,0.00018886,2]
[377947772,1754625032466,-500.0,0.00018886,2]
[377947805,1754625032780,-500.0,0.00018886,2]
[377947807,1754625032790,-500.0,0.00018886,2]
[377947809,1754625032799,-500.0,0.00018886,2]
[377947811,1754625032808,-500.0,0.00018886,2]
[377947813,1754625032817,-500.0,0.00018886,2]
[377947815,1754625032826,-500.0,0.00018886,2]
[377947817,1754625032836,-500.0,0.00018886,2]
[377947819,1754625032845,-500.0,0.00018886,2]
[377947821,1754625032854,-500.0,0.00018886,2]
[377947823,1754625032863,-500.0,0.00018886,2]
[377947825,1754625032873,-500.0,0.00018886,2]
[377947827,1754625032882,-500.0,0.00018886,2]
[377947829,1754625032892,-517.74644966,0.00018886,2]
[377947831,1754625032902,-500.0,0.00018886,2]
[377947833,1754625032911,-500.0,0.00018886,2]
[377947835,1754625032920,-500.0,0.00018886,2]
[377947837,1754625032930,-500.0,0.00018886,2]
[377947838,1754625032939,-500.0,0.00018886,2]
[377947840,1754625032948,-500.0,0.00018886,2]
[377947842,1754625032958,-500.0,0.00018886,2]
[377947844,1754625032968,-500.0,0.00018886,2]
[377947846,1754625032977,-500.0,0.00018886,2]
[377947849,1754625032986,-500.0,0.00018886,2]
[377947850,1754625032996,-500.0,0.00018886,2]
[377947852,1754625033005,-500.0,0.00018886,2]
[377947855,1754625033015,-500.0,0.00018886,2]
[377947857,1754625033025,-500.0,0.00018886,2]
[377947858,1754625033034,-231.02008729,0.00018886,2]
[377947861,1754625033047,-268.97991271,0.00018886,2]
[377947863,1754625033057,-500.0,0.00018886,2]
[377947865,1754625033066,-500.0,0.00018886,2]
[377947867,1754625033076,-507.53037699,0.00018886,2]
[377947868,1754625033085,-285.55548423,0.00018886,2]
[377947869,1754625033098,-214.44451577,0.00018886,2]
[377947870,1754625033107,-463.65373407,0.00018887,2]
[377947871,1754625033123,-95.65929422,0.00018887,2]
[377947872,1754625033132,-163.04885849,0.00018887,2]
[377947873,1754625033141,-195.53762138,0.00018887,2]
[377947874,1754625033151,-528.38,0.00018887,2]
[377947875,1754625033160,-400.0,0.00018887,2]
[377947876,1754625033169,-400.0,0.00018887,2]
[377947877,1754625033178,-210.25396418,0.00018887,2]
[377947878,1754625033190,-602.81603582,0.00018887,2]
[377947879,1754625033199,-400.0,0.00018887,2]
[377947880,1754625033209,-258.99568329,0.00018887,2]
[377947881,1754625033243,-141.00431671,0.00018887,2]
[377947882,1754625033252,-400.0,0.00018887,2]
[377947883,1754625033263,-646.39,0.00018887,2]
[377947884,1754625033272,-901.08,0.00018887,2]
[377947885,1754625033282,-400.0,0.00018887,2]
[377947886,1754625033291,-469.68,0.00018887,2]
[377947887,1754625033301,-400.0,0.00018887,2]
[377947888,1754625033311,-400.0,0.00018887,2]
[377947889,1754625033320,-610.05,0.00018887,2]
[377947890,1754625033330,-443.58,0.00018887,2]
[377947891,1754625033339,-448.37,0.00018887,2]
[377947892,1754625033349,-400.0,0.00018887,2]
[377947893,1754625033358,-577.49,0.00018887,2]
[377947894,1754625033368,-708.5,0.00018887,2]
[377947895,1754625033378,-429.41,0.00018887,2]
[377947896,1754625033387,-485.84815107,0.00018887,2]
[377947897,1754625033397,-699.58,0.00018887,2]
[377947898,1754625033407,-400.0,0.00018887,2]
[377947899,1754625033417,-746.75,0.00018887,2]
[377947900,1754625033427,-400.0,0.00018887,2]
[377947901,1754625033436,-975.09,0.00018887,2]
[377947902,1754625033446,-915.61,0.00018887,2]
[377947903,1754625033456,-400.0,0.00018887,2]
[377947904,1754625033465,-507.2,0.00018887,2]
[377947905,1754625033475,-632.76,0.00018887,2]
[377947906,1754625033486,-660.47,0.00018887,2]
[377947907,1754625033495,-628.3,0.00018887,2]
[377947908,1754625033505,-400.0,0.00018887,2]
[377947909,1754625033515,-792.22,0.00018887,2]
[377947910,1754625033525,-800.89,0.00018887,2]
[377947911,1754625033535,-400.0,0.00018887,2]
[377947912,1754625033544,-400.0,0.00018887,2]
[377947913,1754625033555,-992.63,0.00018887,2]
[377947914,1754625033564,-805.37,0.00018887,2]
[377947915,1754625033573,-417.58,0.00018887,2]
[377947916,1754625033583,-683.96,0.00018887,2]
[377947917,1754625033593,-523.75,0.00018887,2]
[377947918,1754625033607,-514.96,0.00018887,2]
[377947919,1754625033617,-400.0,0.00018887,2]
[377947920,1754625033627,-964.75,0.00018887,2]
[377947921,1754625033636,-431.85,0.00018887,2]
[377947922,1754625033646,-400.0,0.00018887,2]
[377947923,1754625033655,-797.87,0.00018887,2]
[377947924,1754625033665,-732.04,0.00018887,2]
[377947925,1754625033676,-1355.39,0.00018887,2]
[377947926,1754625033686,-1208.22,0.00018887,2]
[377947927,1754625033695,-912.78,0.00018887,2]
[377947928,1754625033704,-718.9,0.00018887,2]
[377947929,1754625033714,-869.21,0.00018887,2]
[377947930,1754625033723,-400.0,0.00018887,2]
[377947931,1754625033732,-418.57,0.00018887,2]
[377947932,1754625033742,-678.91,0.00018887,2]
[377947933,1754625033752,-400.0,0.00018887,2]
[377947934,1754625033761,-769.94,0.00018887,2]
[377947935,1754625033771,-400.0,0.00018887,2]
[377947936,1754625033781,-477.88,0.00018887,2]
[377947937,1754625033791,-602.69,0.00018887,2]
[377947938,1754625033801,-651.16,0.00018887,2]
[377947939,1754625033810,-400.0,0.00018887,2]
[377947940,1754625033820,-600.96,0.00018887,2]
[377947941,1754625033829,-400.0,0.00018887,2]
[377947942,1754625033839,-400.0,0.00018887,2]
[377947943,1754625033849,-1064.03,0.00018887,2]
[377947944,1754625033858,-909.15,0.00018887,2]
[377947945,1754625033868,-400.0,0.00018887,2]
[377947946,1754625033878,-400.0,0.00018887,2]
[377947947,1754625033888,-400.0,0.00018887,2]
[377947948,1754625033898,-400.0,0.00018887,2]
[377947949,1754625033907,-400.0,0.00018887,2]
[377947950,1754625033916,-400.0,0.00018887,2]
[377947951,1754625033926,-400.0,0.00018887,2]
[377947952,1754625033935,-517.17,0.00018887,2]
[377947953,1754625033944,-400.0,0.00018887,2]
[377947954,1754625033953,-613.57,0.00018887,2]
[377947955,1754625033963,-820.48,0.00018887,2]
[377947956,1754625033972,-878.5,0.00018887,2]
[377947957,1754625033981,-400.0,0.00018887,2]
[377947958,1754625033990,-400.0,0.00018887,2]
[377947959,1754625034000,-400.0,0.00018887,2]
[377947960,1754625034009,-400.0,0.00018887,2]
[377947961,1754625034018,-502.88,0.00018887,2]
[377947962,1754625034028,-400.0,0.00018887,2]
[377947963,1754625034037,-400.0,0.00018887,2]
[377947964,1754625034047,-400.0,0.00018887,2]
[377947965,1754625034056,-400.0,0.00018887,2]
[377947966,1754625034066,-1301.69,0.00018887,2]
[377947967,1754625034076,-923.24,0.00018887,2]
[377947968,1754625034085,-400.0,0.00018887,2]
[377947969,1754625034094,-400.0,0.00018887,2]
[377947970,1754625034114,-742.76,0.00018887,2]
[377947971,1754625034124,-400.0,0.00018887,2]
[377947972,1754625034134,-444.7,0.00018887,2]
[377947973,1754625034143,-514.91,0.00018887,2]
[377947974,1754625034153,-750.64,0.00018887,2]
[377947975,1754625034163,-893.77,0.00018887,2]
[377947976,1754625034172,-952.89,0.00018887,2]
[377947977,1754625034181,-400.0,0.00018887,2]
[377947978,1754625034191,-400.0,0.00018887,2]
[377947979,1754625034200,-445.8,0.00018887,2]
[377947980,1754625034209,-400.0,0.00018887,2]
[377947981,1754625034218,-1902.42,0.00018887,2]
[377947982,1754625034228,-555.05,0.00018887,2]
[377947983,1754625034237,-400.0,0.00018887,2]
[377947984,1754625034247,-400.0,0.00018887,2]
[377947985,1754625034257,-543.59,0.00018887,2]
[377947986,1754625034267,-427.85,0.00018887,2]
[377947987,1754625034276,-400.0,0.00018887,2]
[377947988,1754625034285,-410.01,0.00018887,2]
[377947989,1754625034295,-618.89,0.00018887,2]
[377947990,1754625034304,-469.15,0.00018887,2]
[377947991,1754625034314,-464.5,0.00018887,2]
[377947992,1754625034323,-668.36,0.00018887,2]
[377947993,1754625034333,-726.7,0.00018887,2]
[377947994,1754625034342,-400.0,0.00018887,2]
[377947995,1754625034352,-666.09,0.00018887,2]
[377947996,1754625034361,-400.0,0.00018887,2]
[377947997,1754625034370,-699.55,0.00018887,2]
[377947998,1754625034380,-1078.0,0.00018887,2]
[377947999,1754625034389,-400.0,0.00018887,2]
[377948000,1754625034398,-729.68,0.00018887,2]
[377948001,1754625034408,-610.16,0.00018887,2]
[377948002,1754625034418,-870.19,0.00018887,2]
[377948003,1754625034428,-577.78,0.00018887,2]
[377948004,1754625034437,-400.0,0.00018887,2]
[377948005,1754625034447,-400.0,0.00018887,2]
[377948006,1754625034458,-400.0,0.00018887,2]
[377948007,1754625034470,-831.79,0.00018887,2]
[377948008,1754625034479,-400.0,0.00018887,2]
[377948009,1754625034490,-400.0,0.00018887,2]
[377948010,1754625034499,-400.0,0.00018887,2]
[377948011,1754625034509,-400.0,0.00018887,2]
[377948012,1754625034518,-672.56,0.00018887,2]
[377948013,1754625034528,-744.86,0.00018887,2]
[377948014,1754625034538,-436.21,0.00018887,2]
[377948015,1754625034547,-1086.51,0.00018887,2]
[377948016,1754625034556,-1405.97,0.00018887,2]
[377948017,1754625034565,-734.37,0.00018887,2]
[377948018,1754625034575,-400.0,0.00018887,2]
[377948019,1754625034585,-1512.07,0.00018887,2]
[377948020,1754625034595,-955.49,0.00018887,2]
[377948021,1754625034606,-456.43,0.00018887,2]
[377948022,1754625034617,-400.0,0.00018887,2]
[377948023,1754625034627,-400.0,0.00018887,2]
[377948024,1754625034638,-914.19,0.00018887,2]
[377948025,1754625034650,-400.0,0.00018887,2]
[377948026,1754625034659,-1062.94,0.00018887,2]
[377948027,1754625034669,-400.0,0.00018887,2]
[377948028,1754625034679,-757.98,0.00018887,2]
[377948029,1754625034689,-400.0,0.00018887,2]
[377948030,1754625034698,-1985.22,0.00018887,2]
[377948031,1754625034708,-400.0,0.00018887,2]
[377948032,1754625034717,-400.0,0.00018887,2]
[377948033,1754625034727,-400.0,0.00018887,2]
[377948034,1754625034737,-400.0,0.00018887,2]
[377948035,1754625034747,-400.0,0.00018887,2]
[377948036,1754625034756,-1451.49,0.00018887,2]
[377948037,1754625034766,-400.0,0.00018887,2]
[377948038,1754625034775,-716.25,0.00018887,2]
[377948039,1754625034784,-511.06,0.00018887,2]
[377948040,1754625034794,-400.0,0.00018887,2]
[377948041,1754625034803,-745.04,0.00018887,2]
[377948042,1754625034812,-400.0,0.00018887,2]
[377948043,1754625034821,-400.0,0.00018887,2]
[377948044,1754625034830,-840.58,0.00018887,2]
[377948045,1754625034839,-703.74,0.00018887,2]
[377948046,1754625034849,-560.36,0.00018887,2]
[377948047,1754625034858,-400.0,0.00018887,2]
[377948048,1754625034868,-657.86,0.00018887,2]
[377948049,1754625034877,-1503.8,0.00018887,2]
[377948050,1754625034886,-876.26,0.00018887,2]
[377948051,1754625034895,-427.44,0.00018887,2]
[377948052,1754625034904,-400.0,0.00018887,2]
[377948053,1754625034913,-664.76,0.00018887,2]
[377948054,1754625034923,-646.25,0.00018887,2]
[377948055,1754625034933,-400.0,0.00018887,2]
[377948056,1754625034943,-433.17,0.00018887,2]
[377948057,1754625034952,-400.0,0.00018887,2]
[377948058,1754625034963,-400.0,0.00018887,2]
[377948059,1754625034972,-400.0,0.00018887,2]
[377948060,1754625034982,-1163.59,0.00018887,2]
[377948061,1754625034992,-919.38,0.00018887,2]
[377948062,1754625035001,-400.0,0.00018887,2]
[377948063,1754625035010,-400.0,0.00018887,2]
[377948064,1754625035020,-498.34,0.00018887,2]
[377948065,1754625035029,-696.94,0.00018887,2]
[377948066,1754625035038,-400.0,0.00018887,2]
[377948067,1754625035048,-400.0,0.00018887,2]
[377948068,1754625035057,-889.6,0.00018887,2]
[377948069,1754625035066,-400.0,0.00018887,2]
[377948070,1754625035075,-400.0,0.00018887,2]
[377948071,1754625035084,-400.0,0.00018887,2]
[377948072,1754625035094,-400.0,0.00018887,2]
[377948073,1754625035103,-400.0,0.00018887,2]
[377948074,1754625035113,-557.25,0.00018887,2]
[377948075,1754625035123,-400.0,0.00018887,2]
[377948076,1754625035132,-1901.57,0.00018887,2]
[377948077,1754625035142,-400.0,0.00018887,2]
[377948078,1754625035152,-1009.84,0.00018887,2]
[377948079,1754625035164,-400.0,0.00018887,2]
[377948080,1754625035174,-480.67,0.00018887,2]
[377948081,1754625035183,-416.08,0.00018887,2]
[377948082,1754625035193,-627.49,0.00018887,2]
[377948083,1754625035202,-773.91,0.00018887,2]
[377948084,1754625035211,-1299.83,0.00018887,2]
[377948085,1754625035220,-400.0,0.00018887,2]
[377948086,1754625035229,-400.0,0.00018887,2]
[377948087,1754625035239,-400.0,0.00018887,2]
[377948088,1754625035249,-400.0,0.00018887,2]
[377948089,1754625035258,-742.56,0.00018887,2]
[377948090,1754625035267,-1325.72,0.00018887,2]
[377948091,1754625035276,-400.0,0.00018887,2]
[377948092,1754625035288,-2330.83,0.00018887,2]
[377948093,1754625035297,-400.0,0.00018887,2]
[377948094,1754625035306,-400.0,0.00018887,2]
[377948095,1754625035315,-593.78,0.00018887,2]
[377948096,1754625035325,-400.0,0.00018887,2]
[377948097,1754625035334,-400.0,0.00018887,2]
[377948098,1754625035343,-435.98,0.00018887,2]
[377948099,1754625035352,-400.8,0.00018887,2]
[377948100,1754625035362,-519.63,0.00018887,2]
[377948101,1754625035371,-400.0,0.00018887,2]
[377948102,1754625035380,-1662.34,0.00018887,2]
[377948103,1754625035390,-400.0,0.00018887,2]
[377948104,1754625035400,-453.65,0.00018887,2]
[377948105,1754625035409,-706.08,0.00018887,2]
[377948106,1754625035419,-400.0,0.00018887,2]
[377948107,1754625035429,-400.0,0.00018887,2]
[377948108,1754625035438,-1224.89,0.00018887,2]
[377948109,1754625035448,-488.12,0.00018887,2]
[377948110,1754625035458,-688.31,0.00018887,2]
[377948111,1754625035470,-1092.73,0.00018887,2]
[377948112,1754625035479,-1240.61,0.00018887,2]
[377948113,1754625035489,-400.0,0.00018887,2]
[377948114,1754625035499,-725.95,0.00018887,2]
[377948115,1754625035508,-1385.41,0.00018887,2]
[377948116,1754625035518,-590.25,0.00018887,2]
[377948117,1754625035527,-400.0,0.00018887,2]
[377948118,1754625035537,-400.0,0.00018887,2]
[377948119,1754625035546,-400.0,0.00018887,2]
[377948120,1754625035556,-400.0,0.00018887,2]
[377948121,1754625035565,-400.0,0.00018887,2]
[377948122,1754625035575,-441.39,0.00018887,2]
[377948123,1754625035584,-1636.33,0.00018887,2]
[377948124,1754625035594,-400.0,0.00018887,2]
[377948125,1754625035607,-400.0,0.00018887,2]
[377948126,1754625035618,-397.74145028,0.00018888,2]
[377948127,1754625035628,-403.16772781,0.00018888,2]
[377948128,1754625035637,-831.52,0.00018888,2]
[377948129,1754625035651,-400.0,0.00018888,2]
[377948130,1754625035660,-400.0,0.00018888,2]
[377948131,1754625035669,-400.0,0.00018888,2]
[377948132,1754625035679,-400.0,0.00018888,2]
[377948133,1754625035688,-400.0,0.00018888,2]
[377948134,1754625035698,-400.0,0.00018888,2]
[377948135,1754625035707,-400.0,0.00018888,2]
[377948136,1754625035716,-593.06,0.00018888,2]
[377948137,1754625035726,-808.72,0.00018888,2]
[377948138,1754625035735,-514.67,0.00018888,2]
[377948139,1754625035745,-417.77,0.00018888,2]
[377948140,1754625035755,-639.23,0.00018888,2]
[377948141,1754625035765,-400.0,0.00018888,2]
[377948142,1754625035774,-400.0,0.00018888,2]
[377948143,1754625035784,-606.15,0.00018888,2]
[377948144,1754625035793,-723.17,0.00018888,2]
[377948145,1754625035802,-1000.0,0.00018888,2]
[377948146,1754625035812,-476.76,0.00018888,2]
[377948147,1754625035821,-400.0,0.00018888,2]
[377948148,1754625035830,-400.0,0.00018888,2]
[377948149,1754625035839,-400.0,0.00018888,2]
[377948150,1754625035848,-400.0,0.00018888,2]
[377948151,1754625035858,-400.0,0.00018888,2]
[377948152,1754625035868,-663.77,0.00018888,2]
[377948153,1754625035884,-400.0,0.00018888,2]
[377948154,1754625035893,-632.77,0.00018888,2]
[377948155,1754625035912,-400.0,0.00018888,2]
[377948156,1754625035923,-471.83,0.00018888,2]
[377948157,1754625035933,-400.0,0.00018888,2]
[377948158,1754625036160,-400.0,0.00018888,2]
[377948159,1754625036170,-413.25,0.00018888,2]
[377948160,1754625036179,-400.0,0.00018888,2]
[377948161,1754625036188,-652.2,0.00018888,2]
[377948162,1754625036198,-400.0,0.00018888,2]
[377948163,1754625036208,-502.72601787,0.00018888,2]
[377948164,1754625036217,-400.0,0.00018888,2]
[377948165,1754625036228,-400.0,0.00018888,2]
[377948166,1754625036238,-400.0,0.00018888,2]
[377948167,1754625036247,-400.0,0.00018888,2]
[377948168,1754625036256,-430.08,0.00018888,2]
[377948169,1754625036265,-400.0,0.00018888,2]
[377948170,1754625036275,-400.0,0.00018888,2]
[377948171,1754625036285,-400.0,0.00018888,2]
[377948172,1754625036294,-400.0,0.00018888,2]
[377948173,1754625036303,-400.0,0.00018888,2]
[377948174,1754625036312,-400.0,0.00018888,2]
[377948175,1754625036321,-400.0,0.00018888,2]
[377948176,1754625036330,-403.21,0.00018888,2]
[377948177,1754625036340,-719.81,0.00018888,2]
[377948178,1754625036350,-400.0,0.00018888,2]
[377948179,1754625036360,-400.0,0.00018888,2]
[377948180,1754625036369,-721.99,0.00018888,2]
[377948181,1754625036379,-400.0,0.00018888,2]
[377948182,1754625036388,-400.0,0.00018888,2]
[377948183,1754625036397,-400.0,0.00018888,2]
[377948184,1754625036407,-400.0,0.00018888,2]
[377948185,1754625036416,-400.0,0.00018888,2]
[377948186,1754625036425,-400.0,0.00018888,2]
[377948187,1754625036434,-400.0,0.00018888,2]
[377948188,1754625036444,-400.0,0.00018888,2]
[377948189,1754625036453,-766.67,0.00018888,2]
[377948190,1754625036463,-739.12,0.00018888,2]
[377948191,1754625036472,-848.02,0.00018888,2]